Cogmind - Beta 11.1 @@@ ROGUE MODE // 2022.06.05 @ 14:23:20 Player: darki Result: Destroyed by H-88 Terminator with Heavy Machine Gun Performance ------------- Evolutions (9) 4500 Regions Visited (21) 4200 Robots Destroyed (72) 360 Value Destroyed (3104) 3104 Prototype IDs (36) 720 Alien Tech Used (5) 1000 Bonus (907) 907 TOTAL SCORE: 14791 Bonus ------- High Alert Combat Kills 68 Follower Combat Kills 1157 Aligned with FarCom 300 Friendly Fire -618 Cogmind --------- Core Integrity 0/1600 Matter 157/300 Energy 74/100 System Corruption 0% Temperature Cool (0) Movement Core (100) Ox1 Location -1/Access Parts ------- > --- POWER (3) -------- (None) > --- PROPULSION (10) -- (None) > --- UTILITY (10) ----- Advanced Visual Processing Unit Improved Core Shielding Improved Core Shielding > --- WEAPON (2) ------- (None) > --- INVENTORY (5) ---- (None) Peak State ------------ > --- POWER ------------ Light Ion Engine Micro Antimatter Reactor > --- PROPULSION ------- Improved Gyrokinetic Inverter Improved Gyrokinetic Inverter Cooled Antigrav System Cooled VTOL Module Field Propulsion Drive Impulse Thruster Array > --- UTILITY ---------- Advanced Heat Sink Lightpack 2.0 Advanced Trap Scanner Advanced Signal Interpreter Improved Terrain Scanner Advanced Melee Analysis Suite Experimental Target Analyzer Graphene Brace > --- WEAPON ----------- Sigix Broadsword > --- INVENTORY -------- Improved Treads Medium Treads Armored Medium Treads Biometal Medium Treads Biometal Medium Treads Myomer Leg Biometal Leg Biometal Leg Improved Gyrokinetic Inverter Improved Gyrokinetic Inverter Long-range Sensor Array Improved Powered Armor Improved Powered Armor Improved Powered Armor Improved System Guard Advanced Recalibrator Advanced Variable Charge Gun Improved Matter Neutralizer Helical Railgun Helical Railgun Linear Accelerator Micro-nuke Launcher Micro-nuke Launcher Micro-nuke Launcher Micro-nuke Launcher Micro-nuke Launcher Advanced Datajack Power Maul [Rating: 177] Favorites ----------- Power Cooled Deuterium Engine Engine Cooled Deuterium Engine Power Core Neutrino Core Reactor Micro Antimatter Reactor Propulsion Improved Gyrokinetic Inverter Treads Improved Treads Leg Flexi-carbon Leg Wheel Wheel Hover Unit Improved Gyrokinetic Inverter Flight Unit Cooled VTOL Module Utility Advanced Melee Analysis Suite Device ECM Suite Storage Large Storage Unit Processor Advanced Melee Analysis Suite Protection Improved Propulsion Shielding Artifact Phase Armor Weapon Greatsword Energy Gun Particle Gun Energy Cannon Heavy Phase Cannon Ballistic Gun Assault Rifle Ballistic Cannon Heavy Flak Cannon Launcher Heavy Rocket Launcher Special Weapon Mining Laser Impact Weapon Power Maul Slashing Weapon Greatsword Build | -11 -10 -10 -9 -9 -9 -8 -8 -7 -6 -5 -4 -4 -4 -4 -4 -4 -4 -3 -3 -2 -1 ------- Run | Scr Mat Min Mat Min Exi Min Mat Fac Fac Fac Fac Was Fac Ext Cet Arc Hub Res Qua Res Acc Slots Evolved 18 | . . . 2 . . . 2 2 2 2 2 . . . . . . 2 . 2 2 Power 2 | . . . . . . . . . . 1 . . . . . . . . . 1 . Propulsion 8 | . . . . . . . 2 1 . 1 1 . . . . . . . . 1 2 Utility 8 | . . . 2 . . . . 1 2 . 1 . . . . . . 2 . . . Weapon . | . . . . . . . . . . . . . . . . . . . . . . Parts Attached 210 | . 6 2 9 . 3 . 5 7 7 5 5 3 . 20 14 21 17 19 14 4 49 Power 28 | . 1 . 1 . . . 1 1 . 2 . . . 4 2 2 3 5 . 1 5 Engine 6 | . . . 1 . . . . 1 . 1 . . . . . . . 1 . . 2 Core 9 | . 1 . . . . . 1 . . 1 . . . 3 . 2 1 . . . . Reactor 13 | . . . . . . . . . . . . . . 1 2 . 2 4 . 1 3 Propulsion 68 | . 3 1 3 . 2 . 1 1 . 1 2 . . 9 3 7 10 5 1 1 18 Treads 9 | . 1 . . . . . . . . . . . . 2 1 . 4 . . . 1 Leg 19 | . 2 1 3 . . . . . . . . . . 3 . 7 2 . . . 1 Wheel 2 | . . . . . 2 . . . . . . . . . . . . . . . . Hover 11 | . . . . . . . . . . . . . . 4 . . 4 . 1 . 2 Flight 27 | . . . . . . . 1 1 . 1 2 . . . 2 . . 5 . 1 14 Utility 54 | . 2 . 1 . . . 2 1 6 2 2 . . 4 2 5 2 4 1 2 18 Device 24 | . 1 . 1 . . . 2 . 1 2 1 . . 3 1 3 1 3 . 1 4 Storage 6 | . 1 . . . . . . . . . . . . 1 . 2 1 . . . 1 Processor 11 | . . . . . . . . 1 5 . 1 . . . 1 . . 1 . . 2 Hackware . | . . . . . . . . . . . . . . . . . . . . . . Protection 8 | . . . . . . . . . . . . . . . . . . . . . 8 Artifact 5 | . . . . . . . . . . . . . . . . . . . 1 1 3 Weapon 60 | . . 1 4 . 1 . 1 4 1 . 1 3 . 3 7 7 2 5 12 . 8 Energy Gun 16 | . . 1 1 . 1 . 1 1 . . . . . . 4 6 . 1 . . . Energy Cannon 3 | . . . . . . . . . . . . . . . 1 1 . 1 . . . Ballistic Gun 3 | . . . 1 . . . . . . . . . . . . . . 2 . . . Ballistic Cannon 1 | . . . . . . . . . . . . . . . . . 1 . . . . Launcher 10 | . . . . . . . . . . . . 2 . 2 2 . . . 2 . 2 Special Weapon 2 | . . . 2 . . . . . . . . . . . . . . . . . . Impact Weapon 6 | . . . . . . . . 1 . . . . . . . . 1 . 4 . . Slashing Weapon 19 | . . . . . . . . 2 1 . 1 1 . 1 . . . 1 6 . 6 Piercing Weapon . | . . . . . . . . . . . . . . . . . . . . . . Special Melee Weapon . | . . . . . . . . . . . . . . . . . . . . . . Unidentified Prototypes 18 | . . . 1 . . . . 2 . . 2 . . . . . . 6 5 1 1 Parts Lost 96 | . 2 . 2 . . . . . 2 . 1 . . 8 5 10 18 6 7 2 33 Power 18 | . 1 . . . . . . . . . . . . 2 2 2 3 3 1 . 4 Propulsion 38 | . 1 . 1 . . . . . . . . . . 3 1 2 10 2 4 . 14 Utility 25 | . . . . . . . . . 2 . 1 . . 2 1 2 2 . 2 2 11 Weapon 15 | . . . 1 . . . . . . . . . . 1 1 4 3 1 . . 4 Highest Loss Streak 29 | . 1 . 1 . . . . . 1 . 1 . . 7 3 10 18 4 4 2 29 To Critical Strikes 2 | . . . . . . . . . . . . . . 1 . . . . . . 1 Average Slot Usage (%) 72 | . 92 100 84 77 77 77 61 62 71 74 75 78 78 75 85 78 83 56 58 28 48 Engine 4 | . 8 . 8 11 11 11 . 5 6 8 5 5 5 . . . . 2 1 . . Core 3 | . 5 14 2 . . . 8 1 . 1 5 5 5 7 8 5 8 1 . . . Leg 7 | . 24 28 21 22 12 . . . . . . . . 8 7 . 29 . . . . Wheel 1 | . . . . . 9 22 . . . . . . . . . . . . . . . Hover 4 | . . . . . . . . . . . . . . 13 21 20 1 12 13 3 1 Flight 7 | . . . . . . . 8 11 13 17 21 21 21 7 5 8 . 9 9 3 17 Device 13 | . 9 14 20 11 11 11 24 23 18 15 17 15 15 8 10 8 9 6 11 6 6 Storage 7 | . 14 14 11 11 11 11 9 7 6 5 5 5 5 5 5 6 6 4 4 3 2 Processor 7 | . . . . . . . . 4 19 17 16 21 21 15 14 15 13 9 7 4 6 Energy Gun 5 | . . 13 14 11 11 22 9 3 . . . . . . 4 7 8 . . . . Ballistic Gun 2 | . 28 14 2 . . . . . . . . . . . . . . 1 1 . . Special Weapon 1 | . . . 3 11 10 . . . . . . . . . . . . . . . . Slashing Weapon 1 | . . . . . . . . 3 5 5 4 4 5 3 . . . 1 . . . Naked Turns . | . . . . . . . . . . . . . . . . . . . . . . Heaviest Build 125 | 11 30 32 42 33 34 34 38 43 43 49 54 51 51 55 51 125 122 36 28 40 87 Greatest Support 145 | 20 20 20 23 20 26 26 50 55 55 60 68 68 68 68 48 140 145 48 28 16 53 Greatest Overweight (x) 13 | . 1 1 2 1 1 1 . . . . . . . 1 1 2 2 . . 13 2 Average Overweight (x) . | . . 1 1 1 1 1 . . . . . . . . . . . . . . . Largest Inventory Capacity 40 | . 15 15 15 15 15 15 15 15 15 15 15 15 15 40 40 40 40 40 40 40 15 Average Capacity 21 | . 8 15 15 15 15 15 15 15 15 15 15 15 15 36 40 40 40 40 40 33 11 Most Carried 40 | . 8 11 11 9 15 15 15 15 15 15 14 15 15 40 40 36 21 24 35 39 15 Average Carried 16 | . 6 9 10 9 12 15 13 14 14 13 13 13 15 22 38 29 18 18 29 29 7 Final Capacity 40 | 8 15 15 15 15 15 15 15 15 15 15 15 15 15 40 40 40 40 40 40 5 5 Final Carried 40 | 6 8 11 9 9 15 15 14 15 15 15 13 15 15 40 36 21 12 24 35 5 . Class Distribution -------------------- 33% | Mutant 18% | Hauler-Mutant 10% | Gladiator 10% | Scavenger-Mutant 8% | Sprinter 7% | Hauler-Gladiator 7% | Scout Dominant Class ---------------- Mutant | -10/Materials Scavenger-Mutant | -10/Mines Mutant | -9/Materials Mutant | -9/Mines Mutant | -9/Exiles Mutant | -8/Mines Scout | -8/Materials Mutant | -7/Factory Gladiator | -6/Factory Gladiator | -5/Factory Sprinter | -4/Factory Sprinter | -4/Waste Sprinter | -4/Factory Hauler-Gladiator | -4/Extension Hauler-Mutant | -4/Cetus Hauler-Mutant | -4/Archives Scavenger-Mutant | -4/Hub_04(d) Hauler-Gladiator | -3/Research Hauler-Mutant | -3/Quarantine Hauler-Mutant | -2/Research Scavenger-Sprinter | -1/Access Resources | -11 -10 -10 -9 -9 -9 -8 -8 -7 -6 -5 -4 -4 -4 -4 -4 -4 -4 -3 -3 -2 -1 ----------- Run | Scr Mat Min Mat Min Exi Min Mat Fac Fac Fac Fac Was Fac Ext Cet Arc Hub Res Qua Res Acc Matter Collected 2296 | 200 106 117 104 . . 16 33 103 71 50 35 96 . 300 165 130 155 101 10 22 482 Remotely . | . . . . . . . . . . . . . . . . . . . . . . Salvage Created 3556 | . 228 97 73 . . . 33 103 187 300 195 315 . 227 353 364 375 128 . . 578 Parts 164 | . 17 4 4 . . . 1 5 14 14 7 . . 10 16 8 19 4 . . 41 Haulers Intercepted 5 | . . . . . . . . . . 1 . . . 1 . . 1 1 . . 1 Recyclers Shooed 1 | . . . . . . . . . . . . . . 1 . . . . . . . Parts Field Recycled . | . . . . . . . . . . . . . . . . . . . . . . Retrieved Matter . | . . . . . . . . . . . . . . . . . . . . . . Parts Self-Destructed . | . . . . . . . . . . . . . . . . . . . . . . Prevented . | . . . . . . . . . . . . . . . . . . . . . . Kills | -11 -10 -10 -9 -9 -9 -8 -8 -7 -6 -5 -4 -4 -4 -4 -4 -4 -4 -3 -3 -2 -1 ------- Run | Scr Mat Min Mat Min Exi Min Mat Fac Fac Fac Fac Was Fac Ext Cet Arc Hub Res Qua Res Acc Combat Hostiles Destroyed 54 | . 8 2 2 . . . . 1 4 3 2 2 . 1 8 4 6 . . . 11 Melee 18 | . . . . . . . . . 4 3 2 . . . . . . . . . 9 Guns 26 | . 8 2 2 . . . . 1 . . . . . . 7 2 4 . . . . Cannons 3 | . . . . . . . . . . . . . . . 1 1 1 . . . . AOE 5 | . . . . . . . . . . . . 2 . 1 . . . . . . 2 Classes Destroyed 15 | . 2 . 2 . . . . 2 2 2 . 1 . 3 . . 1 . . . . Worker 2 | . . . . . . . . . . . . . . 1 . . . 1 . . . Builder 3 | . . . . . . . . . . . . . . 1 . . . . . . 2 Hauler 5 | . . . . . . . . . . 1 . . . 1 . . 1 1 . . 1 Operator 3 | . . . . . . . . 1 1 . . . . 1 . . . . . . . Watcher 5 | . . . 1 . . . 1 . . . 1 . . . 1 . . . . . 1 Swarmer 18 | . 3 . . . . . . . . . . . . . 4 . 3 . . . 8 Cutter 4 | . . . . . . . . . 2 . . . . . . . . . . . 2 Grunt 9 | . 5 2 . . . . . . . . . . . . 2 . . . . . . Sentry 12 | . . . 2 . . . . . 1 1 2 . . . . 4 1 . . . 1 Specialist 1 | . . . . . . . . . . . . . . . . . 1 . . . . Hunter 2 | . . . . . . . . . . 2 . . . . . . . . . . . Programmer 3 | . . . . . . . . . 1 . . . . . 1 . 1 . . . . Heavy 1 | . . . . . . . . 1 . . . . . . . . . . . . . Behemoth 1 | . . . . . . . . . . . . . . 1 . . . . . . . Compactor 2 | . . . . . . . . . . . . 2 . . . . . . . . . Cetus Guard 1 | . . . . . . . . . . . . . . . 1 . . . . . . Best Kill Streak 8 | . 8 2 1 . . . 1 1 3 3 2 2 . 2 4 3 6 1 . . 4 Combat Bots Only 8 | . 8 2 1 . . . . 1 2 3 1 2 . 1 4 3 6 . . . 4 Max Kills in Single Turn 4 | . 2 1 1 . . . 1 1 1 1 1 2 . 1 1 1 2 1 . . 4 Gunslinging 1 | . 1 . . . . . . . . . . . . . . . . . . . . Exploded 2 | . . . . . . . . . . . . 2 . 1 . . . . . . 2 Melee 1 | . . . . . . . . . 1 1 1 . . . . . . . . . 1 Uniques/NPCs Destroyed . | . . . . . . . . . . . . . . . . . . . . . . Combat | -11 -10 -10 -9 -9 -9 -8 -8 -7 -6 -5 -4 -4 -4 -4 -4 -4 -4 -3 -3 -2 -1 -------- Run | Scr Mat Min Mat Min Exi Min Mat Fac Fac Fac Fac Was Fac Ext Cet Arc Hub Res Qua Res Acc Damage Taken 15193 | . 405 91 597 . . . . 249 461 436 208 24 . 782 769 883 2503 790 868 1706 4421 Core 4085 | . 65 18 42 . . . . 11 71 41 . . . 86 47 137 238 235 242 1247 1605 Absorbed by Shields 104 | . . . . . . . . . . . . . . 14 90 . . . . . . Redirected to Core 255 | . . . . . . . . . . . . . . . . . . . . 171 84 Redirected to Shielding 683 | . . . . . . . . . . . . . . . . . . . . . 683 Regen/Repaired (Parts) 282 | . . . . . . . . . . . 128 . . . . . . . . . 154 Core Remaining (%) 75 | 100 . 66 . . . 89 100 98 91 95 . . . . . . 55 . 50 14 . Volleys Fired 124 | . 30 5 18 . . . . . . . . 2 . 5 12 20 21 5 4 . 2 Largest 2 | . 2 2 2 . . . . . . . . 2 . 2 2 2 2 1 1 . 1 Hottest 188 | . 40 40 105 . . . . . . . . 78 . 78 171 188 188 38 38 . 49 Shots Fired 281 | . 60 10 25 . . . 1 10 . . . 4 . 10 48 62 40 5 4 . 2 Gun 229 | . 60 10 19 . . . 1 10 . . . . . . 36 50 34 5 4 . . Cannon 25 | . . . . . . . . . . . . . . . 7 12 6 . . . . Launcher 21 | . . . . . . . . . . . . 4 . 10 5 . . . . . 2 Special 6 | . . . 6 . . . . . . . . . . . . . . . . . . Kinetic 89 | . 60 10 4 . . . . . . . . . . . . . 6 5 4 . . Thermal 168 | . . . 18 . . . 1 10 . . . . . . 43 62 34 . . . . Explosive 21 | . . . . . . . . . . . . 4 . 10 5 . . . . . 2 Electromagnetic 3 | . . . 3 . . . . . . . . . . . . . . . . . . Robot Hit Streak 26 | . 15 16 25 . . . 26 9 . . . 2 . 12 17 24 7 . . . 1 Robot Miss Streak 8 | . 3 1 . . . . . 1 . . . 1 . . 4 3 8 . . . 1 Penetration Max . | . . . . . . . . . . . . . . . . . . . . . . Secondary Targets 3 | . 2 . . . . . . . . . . . . . . . 1 . . . . Max Gunslinging Chain 1 | . 1 . . . . . . . . . . . . . . . 1 . . . . Autonomous 62 | . . . . . . . 1 10 . . . . . . 29 22 . . . . . Shots Hit Robots 245 | . 36 9 17 . . . 1 10 11 11 14 2 . 13 34 41 25 4 . . 17 Core Hits 145 | . 13 6 5 . . . 1 4 4 5 3 8 . 13 36 13 16 2 . . 16 Critical Kills . | . . . . . . . . . . . . . . . . . . . . . . Critical Parts Destroyed . | . . . . . . . . . . . . . . . . . . . . . . Critical Strikes 8 | . . . 1 . . . . . 1 3 . . . . . 1 . 2 . . . Burn 2 | . . . 1 . . . . . . . . . . . . 1 . . . . . Sever 6 | . . . . . . . . . 1 3 . . . . . . . 2 . . . Melee Attacks 90 | . . . . . . . . 6 16 13 16 4 . 3 . . . 5 6 . 21 Impact 2 | . . . . . . . . . . . . . . . . . . . 2 . . Slashing 88 | . . . . . . . . 6 16 13 16 4 . 3 . . . 5 4 . 21 Piercing . | . . . . . . . . . . . . . . . . . . . . . . Sneak Attacks 10 | . . . . . . . . 1 . 2 1 . . 3 . . . 2 . . 1 Combat Hostiles 2 | . . . . . . . . . . 1 1 . . . . . . . . . . Follow-up Attacks . | . . . . . . . . . . . . . . . . . . . . . . Damage Inflicted 11860 | . 396 94 246 . . . 26 405 726 794 936 1062 . 1114 1868 1234 786 322 . 25 1826 Guns 3349 | . 396 94 246 . . . 26 268 . . . . . . 836 854 629 . . . . Cannons 650 | . . . . . . . . . . . . . . . 150 380 120 . . . . Explosions 3121 | . . . . . . . . . . . . 1062 . 778 882 . . . . . 399 Melee 4678 | . . . . . . . . 137 726 794 936 . . 336 . . . 322 . . 1427 Ramming 62 | . . . . . . . . . . . . . . . . . 37 . . 25 . Kinetic 659 | . 396 94 49 . . . . . . . . . . . . . 120 . . . . Thermal 3318 | . . . 175 . . . 26 268 . . . . . . 986 1234 629 . . . . Explosive 3121 | . . . . . . . . . . . . 1062 . 778 882 . . . . . 399 Electromagnetic 22 | . . . 22 . . . . . . . . . . . . . . . . . . Impact . | . . . . . . . . . . . . . . . . . . . . . . Slashing 4678 | . . . . . . . . 137 726 794 936 . . 336 . . . 322 . . 1427 Piercing . | . . . . . . . . . . . . . . . . . . . . . . Highest Corruption 2 | . 1 1 . . . . . 1 2 . . . . . . . . . 1 . . Average Corruption 1 | . 1 1 . . . . . 1 2 . . . . . . . . . 1 . . Corruption Purged . | . . . . . . . . . . . . . . . . . . . . . . Corruption Blocked 15 | . . . . . . . . . . . . . . . . . . . 15 . . Effects 11 | . 2 5 . . . . . . 3 . . . . . . . . . 1 . . Message Errors 3 | . . 3 . . . . . . . . . . . . . . . . . . . Matter Fused 5 | . 2 1 . . . . . . 1 . . . . . . . . . 1 . . Energy Discharges 1 | . . . . . . . . . 1 . . . . . . . . . . . . Data Loss (minor) 1 | . . . . . . . . . 1 . . . . . . . . . . . . Data Loss (major) 1 | . . 1 . . . . . . . . . . . . . . . . . . . Overload Shots . | . . . . . . . . . . . . . . . . . . . . . . Overflow Damage 454 | . . . . . . . . . 97 84 79 . . 100 17 . . . . . 77 Projectiles . | . . . . . . . . . . . . . . . . . . . . . . Explosions 25 | . . . . . . . . . . . . . . . 17 . . . . . 8 Melee 429 | . . . . . . . . . 97 84 79 . . 100 . . . . . . 69 Knockbacks 7 | . . . . . . . . . . . . . . . . . 7 . . . . Impact . | . . . . . . . . . . . . . . . . . . . . . . Kinetic 5 | . . . . . . . . . . . . . . . . . 5 . . . . Secondary 2 | . . . . . . . . . . . . . . . . . 2 . . . . Self-Inflicted Damage 147 | . . . . . . . . . . . . . . . 51 . . . . 11 85 Shots 2 | . . . . . . . . . . . . . . . 1 . . . . . 1 Rammed 10 | . . . . . . . . . . . . . . . . . 1 . . 9 . Targets Rammed 14 | . . . . . . . . . . . . . . . . . 5 . . 9 . Kicked 4 | . . . . . . . . . . . . . . . . . 4 . . . . Crushed . | . . . . . . . . . . . . . . . . . . . . . . Highest Temperature 477 | . 18 20 152 . . . . . . . . . . 29 6 477 12 . . . 13 Average Temperature 78 | . 7 9 41 . . . . . . . . . . 15 6 164 5 . . . 3 Received Heat Transfer 1375 | . 153 51 156 . . . . 42 48 153 36 9 . 99 126 54 142 102 51 117 36 Effects 4 | . . . . . . . . . . . . . . . . 4 . . . . . Shutdowns 3 | . . . . . . . . . . . . . . . . 3 . . . . . Short Circuit 1 | . . . . . . . . . . . . . . . . 1 . . . . . Siege Activations . | . . . . . . . . . . . . . . . . . . . . . . Robots Corrupted . | . . . . . . . . . . . . . . . . . . . . . . Combat Hostiles . | . . . . . . . . . . . . . . . . . . . . . . Parts Fried . | . . . . . . . . . . . . . . . . . . . . . . Impact Corruptions . | . . . . . . . . . . . . . . . . . . . . . . Robots Melted 2 | . . . . . . . . . . . . . . . . 1 1 . . . . Combat Hostiles 2 | . . . . . . . . . . . . . . . . 1 1 . . . . Parts Melted 12 | . . . 3 . . . . 3 . . . . . . 1 5 . . . . . Heat Transferred 4477 | . . . 481 . . . 37 333 . . . . . . 1221 1628 777 . . . . Parts Sabotaged . | . . . . . . . . . . . . . . . . . . . . . . Parts Stolen . | . . . . . . . . . . . . . . . . . . . . . . Parts Stripped . | . . . . . . . . . . . . . . . . . . . . . . Power Chain Reactions . | . . . . . . . . . . . . . . . . . . . . . . Missiles Intercepted . | . . . . . . . . . . . . . . . . . . . . . . Alert | -11 -10 -10 -9 -9 -9 -8 -8 -7 -6 -5 -4 -4 -4 -4 -4 -4 -4 -3 -3 -2 -1 ------- Run | Scr Mat Min Mat Min Exi Min Mat Fac Fac Fac Fac Was Fac Ext Cet Arc Hub Res Qua Res Acc Peak Influence 616 | . 263 152 113 3 . . 7 125 193 276 256 110 36 247 267 259 340 367 432 198 616 Initial 206 | . . 102 . 3 . . . . 21 89 135 89 36 17 75 106 90 149 206 148 112 Average 123 | . 139 143 36 3 . . . 47 94 144 173 82 36 124 176 161 182 229 315 150 319 Maximum Alert Level 2 | . 1 . . . . . . . . 1 1 . . 1 1 1 1 1 2 . 2 Low Security (%) 79 | . 53 100 100 100 . 100 100 100 100 69 71 100 100 76 81 85 66 57 . 100 20 Level 1 18 | . 46 . . . . . . . . 30 28 . . 23 18 14 33 42 82 . 52 Level 2 2 | . . . . . . . . . . . . . . . . . . . 17 . 26 Level 3 . | . . . . . . . . . . . . . . . . . . . . . . Level 4 . | . . . . . . . . . . . . . . . . . . . . . . Level 5 . | . . . . . . . . . . . . . . . . . . . . . . High Security . | . . . . . . . . . . . . . . . . . . . . . . Max Security . | . . . . . . . . . . . . . . . . . . . . . . Squads Dispatched 22 | . 2 . 1 . . . . 3 2 2 . . . 2 1 . 4 1 2 . 2 Investigation 7 | . 2 . 1 . . . . 1 . . . . . 1 1 . . . . . 1 Extermination 4 | . . . . . . . . 1 1 . . . . . . . 1 . 1 . . Reinforcement 10 | . . . . . . . . 1 1 2 . . . 1 . . 2 1 1 . 1 Assault . | . . . . . . . . . . . . . . . . . . . . . . Garrison 1 | . . . . . . . . . . . . . . . . . 1 . . . . Intercept . | . . . . . . . . . . . . . . . . . . . . . . Searches Triggered 1 | . . . . . . . . . . . . . . . . . . . 1 . . Construction Impeded . | . . . . . . . . . . . . . . . . . . . . . . Haulers Reinforced 1 | . . . . . . . . . . 1 . . . . . . . . . . . Active Scanning Responses . | . . . . . . . . . . . . . . . . . . . . . . Cargo Convoy Interrupts . | . . . . . . . . . . . . . . . . . . . . . . Stealth | -11 -10 -10 -9 -9 -9 -8 -8 -7 -6 -5 -4 -4 -4 -4 -4 -4 -4 -3 -3 -2 -1 --------- Run | Scr Mat Min Mat Min Exi Min Mat Fac Fac Fac Fac Was Fac Ext Cet Arc Hub Res Qua Res Acc Distress Signals 11 | . 1 . 3 . . . . . . . 1 . . 2 1 . 2 . . 1 . Communications Jammed . | . . . . . . . . . . . . . . . . . . . . . . Distress Signals . | . . . . . . . . . . . . . . . . . . . . . . Times Spotted 248 | . 15 2 9 . . . 1 10 16 11 7 6 . 20 14 9 26 16 37 10 39 Peak Tracking Total 13 | . 5 2 3 . . . 2 3 7 6 4 6 . 6 5 4 13 12 12 6 13 Tactical Retreats 28 | . 3 . 1 . . . . 6 1 . . . . . . . 3 3 5 1 5 Traps | -11 -10 -10 -9 -9 -9 -8 -8 -7 -6 -5 -4 -4 -4 -4 -4 -4 -4 -3 -3 -2 -1 ------- Run | Scr Mat Min Mat Min Exi Min Mat Fac Fac Fac Fac Was Fac Ext Cet Arc Hub Res Qua Res Acc Traps Triggered 4 | . . . . . . . . 2 . . 1 . . . . . . . . . 1 Indirectly . | . . . . . . . . . . . . . . . . . . . . . . Trap Hack Attempts . | . . . . . . . . . . . . . . . . . . . . . . Triggered . | . . . . . . . . . . . . . . . . . . . . . . Disarmed . | . . . . . . . . . . . . . . . . . . . . . . Reprogrammed . | . . . . . . . . . . . . . . . . . . . . . . Reused . | . . . . . . . . . . . . . . . . . . . . . . Traps Extracted . | . . . . . . . . . . . . . . . . . . . . . . Installed . | . . . . . . . . . . . . . . . . . . . . . . Triggered . | . . . . . . . . . . . . . . . . . . . . . . Machines | -11 -10 -10 -9 -9 -9 -8 -8 -7 -6 -5 -4 -4 -4 -4 -4 -4 -4 -3 -3 -2 -1 ---------- Run | Scr Mat Min Mat Min Exi Min Mat Fac Fac Fac Fac Was Fac Ext Cet Arc Hub Res Qua Res Acc Machines Disabled 17 | . . . . . . . . 1 1 . . . . 2 2 7 . . 4 . . Max in Single Turn 2 | . . . . . . . . 1 1 . . . . 1 1 2 . . 1 . . Machines Sabotaged . | . . . . . . . . . . . . . . . . . . . . . . Garrisons Compromised . | . . . . . . . . . . . . . . . . . . . . . . Overloaded Fab Kills . | . . . . . . . . . . . . . . . . . . . . . . Hacking | -11 -10 -10 -9 -9 -9 -8 -8 -7 -6 -5 -4 -4 -4 -4 -4 -4 -4 -3 -3 -2 -1 --------- Run | Scr Mat Min Mat Min Exi Min Mat Fac Fac Fac Fac Was Fac Ext Cet Arc Hub Res Qua Res Acc Machines Accessed 41 | . 4 1 2 . 1 . 2 2 1 2 3 . 1 10 3 1 3 1 4 . . Terminals 33 | . 4 . 1 . . . 1 2 1 2 1 . . 10 3 . 3 1 4 . . Fabricators 2 | . . . . . . . . . . . 1 . 1 . . . . . . . . Repair Stations 1 | . . . . . . . . . . . 1 . . . . . . . . . . Recycling Units . | . . . . . . . . . . . . . . . . . . . . . . Scanalyzers 2 | . . . 1 . . . 1 . . . . . . . . . . . . . . Garrison Access . | . . . . . . . . . . . . . . . . . . . . . . Total Hacks 115 | . 9 1 3 . 1 . 6 2 2 4 7 . 2 19 19 25 8 1 6 . . Successful 66 | . 2 1 1 . 1 . 4 1 1 1 3 . . 8 7 25 6 1 4 . . Failed 49 | . 7 . 2 . . . 2 1 1 3 4 . 2 11 12 . 2 . 2 . . Catastrophic 12 | . 3 . . . . . 1 . . 1 2 . . 4 1 . . . . . . Database Lockouts . | . . . . . . . . . . . . . . . . . . . . . . Manual 26 | . 9 . 3 . 1 . 2 . . 3 3 . . 4 . 1 . . . . . Terminals 77 | . 9 . 2 . . . 2 2 2 4 3 . . 19 19 . 8 1 6 . . Fabricators 3 | . . . . . . . . . . . 1 . 2 . . . . . . . . Repair Stations 3 | . . . . . . . . . . . 3 . . . . . . . . . . Recycling Units . | . . . . . . . . . . . . . . . . . . . . . . Scanalyzers 5 | . . . 1 . . . 4 . . . . . . . . . . . . . . Garrison Access . | . . . . . . . . . . . . . . . . . . . . . . Terminal Hacks 59 | . 2 1 . . 1 . 1 1 1 1 . . . 8 7 25 6 1 4 . . Record 43 | . . . . . . . . . . . . . . 2 7 25 5 . 4 . . Robot Analysis 1 | . 1 . . . . . . . . . . . . . . . . . . . . Open Door 5 | . . 1 . . . . . . . . . . . 4 . . . . . . . Open DSF 2 | . . . . . . . . 1 1 . . . . . . . . . . . . Level Access Points 1 | . . . . . . . . . . 1 . . . . . . . . . . . Branch Access Points 3 | . 1 . . . . . 1 . . . . . . . . . . 1 . . . Emergency Access Points 1 | . . . . . . . . . . . . . . . . . 1 . . . . Unreport Threat 2 | . . . . . . . . . . . . . . 2 . . . . . . . EX-Prototype ID Bank 1 | . . . . . 1 . . . . . . . . . . . . . . . . Fabricator Hacks 1 | . . . . . . . . . . . 1 . . . . . . . . . . Network Status 1 | . . . . . . . . . . . 1 . . . . . . . . . . Repair Station Hacks 2 | . . . . . . . . . . . 2 . . . . . . . . . . Scan Component 1 | . . . . . . . . . . . 1 . . . . . . . . . . Repair 1 | . . . . . . . . . . . 1 . . . . . . . . . . Recycling Unit Hacks . | . . . . . . . . . . . . . . . . . . . . . . Scanalyzer 3 | . . . . . . . 3 . . . . . . . . . . . . . . Insert Component 2 | . . . . . . . 2 . . . . . . . . . . . . . . Analyze 1 | . . . . . . . 1 . . . . . . . . . . . . . . Garrison Access Hacks . | . . . . . . . . . . . . . . . . . . . . . . Unauthorized Hacks 1 | . . . 1 . . . . . . . . . . . . . . . . . . Terminals . | . . . . . . . . . . . . . . . . . . . . . . Fabricators . | . . . . . . . . . . . . . . . . . . . . . . Repair Stations . | . . . . . . . . . . . . . . . . . . . . . . Recycling Units . | . . . . . . . . . . . . . . . . . . . . . . Scanalyzers 1 | . . . 1 . . . . . . . . . . . . . . . . . . Extract 1 | . . . 1 . . . . . . . . . . . . . . . . . . Garrison Access . | . . . . . . . . . . . . . . . . . . . . . . Data Cores Recovered 1 | . . . . . . . . . 1 . . . . . . . . . . . . Used . | . . . . . . . . . . . . . . . . . . . . . . Hacking Detections 26 | . 4 . 1 . . . 2 1 1 2 1 . 1 6 3 . 3 . 1 . . Full Trace Events 5 | . 3 . . . . . . . . . . . . 1 1 . . . . . . Feedback Events 1 | . 1 . . . . . . . . . . . . . . . . . . . . Corruption 1 | . 1 . . . . . . . . . . . . . . . . . . . . Feedback Blocked . | . . . . . . . . . . . . . . . . . . . . . . Robot Schematics Acquired . | . . . . . . . . . . . . . . . . . . . . . . Robots Built . | . . . . . . . . . . . . . . . . . . . . . . Authchips . | . . . . . . . . . . . . . . . . . . . . . . Time . | . . . . . . . . . . . . . . . . . . . . . . Total Robot Build Rating . | . . . . . . . . . . . . . . . . . . . . . . Part Schematics Acquired 7 | . . . 6 . . . 1 . . . . . . . . . . . . . . Parts Built . | . . . . . . . . . . . . . . . . . . . . . . Authchips . | . . . . . . . . . . . . . . . . . . . . . . Time . | . . . . . . . . . . . . . . . . . . . . . . Total Part Build Rating . | . . . . . . . . . . . . . . . . . . . . . . Parts Repaired 1 | . . . . . . . . . . . 1 . . . . . . . . . . Time 44 | . . . . . . . . . . . 44 . . . . . . . . . . Parts Recycled . | . . . . . . . . . . . . . . . . . . . . . . Recycled Matter . | . . . . . . . . . . . . . . . . . . . . . . Retrieved Matter . | . . . . . . . . . . . . . . . . . . . . . . Retrieved Components . | . . . . . . . . . . . . . . . . . . . . . . Parts Scanalyzed 1 | . . . . . . . 1 . . . . . . . . . . . . . . Part Schematics Acquired 1 | . . . . . . . 1 . . . . . . . . . . . . . . Parts Damaged . | . . . . . . . . . . . . . . . . . . . . . . Bothacking | -11 -10 -10 -9 -9 -9 -8 -8 -7 -6 -5 -4 -4 -4 -4 -4 -4 -4 -3 -3 -2 -1 ------------ Run | Scr Mat Min Mat Min Exi Min Mat Fac Fac Fac Fac Was Fac Ext Cet Arc Hub Res Qua Res Acc Used RIF Installer . | . . . . . . . . . . . . . . . . . . . . . . Robots Hacked . | . . . . . . . . . . . . . . . . . . . . . . Non-combat . | . . . . . . . . . . . . . . . . . . . . . . Combat . | . . . . . . . . . . . . . . . . . . . . . . Robot Hacks Applied . | . . . . . . . . . . . . . . . . . . . . . . Relay Couplers Released . | . . . . . . . . . . . . . . . . . . . . . . Fabnet Peak Effective % . | . . . . . . . . . . . . . . . . . . . . . . Robots Rewired 10 | . . . . . . . . . . . . . . 10 . . . . . . . Allies Hacked 1 | . . . . . . . . . . . . . . . 1 . . . . . . Hacks Repelled . | . . . . . . . . . . . . . . . . . . . . . . Allies | -11 -10 -10 -9 -9 -9 -8 -8 -7 -6 -5 -4 -4 -4 -4 -4 -4 -4 -3 -3 -2 -1 -------- Run | Scr Mat Min Mat Min Exi Min Mat Fac Fac Fac Fac Was Fac Ext Cet Arc Hub Res Qua Res Acc Total Allies 36 | . . . . . . . . . . . . 20 . 16 . . . . . . . Largest Group 19 | . . . . . . . . . . . . 19 9 11 8 . . . . . . Highest-Rated Group 702 | . . . . . . . . . . . . 702 387 508 335 . . . . . . Highest-Rated Ally 51 | . . . . . . . . . . . . 50 46 51 46 . . . . . . Total Orders 10 | . . . 1 . . . . . . . . . . . . . . . . 9 . STAY 3 | . . . . . . . . . . . . . . . . . . . . 3 . EXPLORE 7 | . . . 1 . . . . . . . . . . . . . . . . 6 . Ally Attacks 265 | . . . 15 . . . . . . . . 65 . 142 43 . . . . . . Total Damage 8330 | . . . . . . . . . . . . 3696 . 3380 1254 . . . . . . Kills 30 | . . . . . . . . . . . . 9 . 18 3 . . . . . . Allies Corrupted 2 | . . . . . . . . . . . . . . 2 . . . . . . . Allies Melted . | . . . . . . . . . . . . . . . . . . . . . . Intel | -11 -10 -10 -9 -9 -9 -8 -8 -7 -6 -5 -4 -4 -4 -4 -4 -4 -4 -3 -3 -2 -1 ------- Run | Scr Mat Min Mat Min Exi Min Mat Fac Fac Fac Fac Was Fac Ext Cet Arc Hub Res Qua Res Acc Robot Analysis Total 1 | . 1 . . . . . . . . . . . . . . . . . . . . Derelict Logs Recovered 1 | . . 1 . . . . . . . . . . . . . . . . . . . Drone Launches 23 | . . . 16 . . . . . . . . . . . . . . . . 7 . Drone Recoveries 5 | . . . 1 . . . . . . . . . . . . . . . . 4 . Exploration | -11 -10 -10 -9 -9 -9 -8 -8 -7 -6 -5 -4 -4 -4 -4 -4 -4 -4 -3 -3 -2 -1 ------------- Run | Scr Mat Min Mat Min Exi Min Mat Fac Fac Fac Fac Was Fac Ext Cet Arc Hub Res Qua Res Acc Turns Passed 8160 | . 354 418 557 92 518 469 570 879 342 287 298 222 80 735 361 353 330 291 322 209 473 Spaces Moved 7639 | 1 178 211 204 49 358 307 163 752 628 547 325 375 97 647 296 279 190 530 516 100 886 Core 27 | . . . . . . . . . . . . . . 15 . . . . . 8 4 Treads 7 | . 2 . . . . . . . . . . . . . . . 5 . . . . Legs 953 | 1 176 211 204 49 150 . . . . . . . . . . 1 161 . . . . Wheels 515 | . . . . . 208 307 . . . . . . . . . . . . . . . Hover 1144 | . . . . . . . . . . . . . . 407 296 278 24 120 . 15 4 Flight 4993 | . . . . . . . 163 752 628 547 325 375 97 225 . . . 410 516 77 878 Fastest Speed 19 | 120 120 190 190 190 105 105 50 39 39 34 29 29 29 29 58 58 58 29 35 45 19 Average Speed 64 | 120 127 190 204 190 140 105 50 45 39 34 29 29 29 65 98 59 119 38 39 71 28 Slowest Speed 700 | 120 190 190 260 190 190 105 50 50 39 34 31 29 29 130 118 138 320 58 45 700 189 Overloaded Moves 1 | . . . . . . . . . . . . . . 1 . . . . . . . Propulsion Burnouts . | . . . . . . . . . . . . . . . . . . . . . . Robots Hopped 50 | . . . . . . . . 3 2 2 1 . . 6 . . . 8 15 1 12 Cave-ins Triggered 1 | . . . . . . . . . 1 . . . . . . . . . . . . Teleports 2 | . . . . . . . . . . . . . . . . . . . 2 . . Exploration Rate (%) 37 | 2 34 55 45 21 60 63 17 18 19 14 10 96 4 61 74 100 20 18 47 7 29 Regions Visited 21 Branch Regions 9 Pre-discovered Areas . | . . . . . . . . . . . . . . . . . . . . . . Known Exits Taken 11 | . 1 . . . . 1 . . . 1 . . 1 1 1 1 1 1 1 1 . Unknown Exits Taken 8 | 1 . 1 1 1 1 . 1 1 1 . . . . . . . . . . . . Scrap Searched 2 | . . 1 . . . 1 . . . . . . . . . . . . . . . Spaces Dug 20 | . . . 5 . . . . . 3 . . 4 . . . . . 6 2 . . Terrain Destroyed 228 | . . . 5 . . . . . 3 . . 16 . 74 72 4 13 6 2 . 33 Melee 10 | . . . . . . . . . 3 . . 4 . . . . . 1 2 . . Projectile 32 | . . . 5 . . . . . . . . . . . 5 4 13 5 . . . AOE 186 | . . . . . . . . . . . . 12 . 74 67 . . . . . 33 Terrain Rammed . | . . . . . . . . . . . . . . . . . . . . . . Walls Destroyed . | . . . . . . . . . . . . . . . . . . . . . . Machines Disabled . | . . . . . . . . . . . . . . . . . . . . . . Actions | -11 -10 -10 -9 -9 -9 -8 -8 -7 -6 -5 -4 -4 -4 -4 -4 -4 -4 -3 -3 -2 -1 --------- Run | Scr Mat Min Mat Min Exi Min Mat Fac Fac Fac Fac Was Fac Ext Cet Arc Hub Res Qua Res Acc Total 10438 | . 251 219 305 48 374 454 653 1274 688 618 494 476 148 938 349 425 246 591 610 231 1046 Wait 2113 | . 35 . 73 . . 146 473 492 34 53 148 88 52 156 9 101 7 12 56 108 70 Move 7524 | . 177 210 203 48 357 306 162 746 623 542 323 374 96 636 295 278 189 513 486 97 863 Hop 45 | . . . . . . . . 2 2 2 1 . . 4 . . . 8 14 1 11 Pick Up 127 | . 1 1 . . 7 1 5 5 3 1 . 2 . 39 8 . 1 22 11 5 15 Fast Attach 85 | . 3 1 1 . . . 3 5 3 3 3 . . 8 1 3 3 10 5 3 30 Attach 108 | . 1 . 3 . . . 2 2 1 2 2 3 . 12 12 13 14 9 11 2 19 Detach 64 | . 1 . . . . . 3 2 . 1 . 3 . 7 7 1 4 5 16 4 10 Swap 20 | . 2 1 5 . 3 . . . 3 . . . . . 1 5 . . . . . Drop 57 | . 1 1 2 . 7 1 5 8 3 1 1 . . 7 4 4 2 2 1 2 5 Fire 124 | . 30 5 18 . . . . . . . . 2 . 5 12 20 21 5 4 . 2 Melee 90 | . . . . . . . . 6 16 13 16 4 . 3 . . . 5 6 . 21 Ram 9 | . . . . . . . . . . . . . . . . . . . . 9 . Kick 4 | . . . . . . . . . . . . . . . . . 4 . . . . Crush 1 | . . . . . . . . . . . . . . . . . 1 . . . . Escape Stasis 6 | . . . . . . . . 6 . . . . . . . . . . . . . Rewire 61 | . . . . . . . . . . . . . . 61 . . . . . . . Trap . | . . . . . . . . . . . . . . . . . . . . . . Miscellaneous . | . . . . . . . . . . . . . . . . . . . . . . Route ------- -11/Scrapyard -10/Materials (discovered 2 exits: *Min x2) -10/Mines -9/Materials (discovered 3 exits: *Mat x2 / [*Min]) -9/Mines -9/Exiles -8/Mines -8/Materials (discovered 2 exits: *Fac / Sto) -7/Factory -6/Factory -5/Factory (discovered 4 exits: *Fac x4) -4/Factory -4/Waste -4/Factory -4/Extension (discovered 2 exits: *Res / *Cet) -4/Cetus (discovered 2 exits: *Res / *Arc) -4/Archives (discovered 3 exits: *Res / *Hub x2) -4/Hub_04(d) -3/Research (discovered 3 exits: Arm / *Qua x2) -3/Quarantine -2/Research (discovered 2 exits: *Acc x2) -1/Access History --------- Turn | Location | Event 1 | -11/Scrapyard | Discovered new exit (range 0) 1 | -11/Scrapyard | Entered Materials 113 | -10/Materials | Identified exit to Mines 233 | -10/Materials | Destroyed 8 combat bots 318 | -10/Materials | Build established: Mutant 355 | -10/Materials | Entered Mines 358 | -10/Mines | Met a Derelict bent on vengeance 445 | -10/Mines | Learned 4 Materials zone layouts 685 | -10/Mines | Build established: Scavenger-Mutant 698 | -10/Mines | Discovered new exit (range 11) 718 | -10/Mines | Found the Drone Emporium 726 | -10/Mines | Found Prototype Device 773 | -10/Mines | Entered Materials 773 | -9/Materials | Evolved 2 slots: Utility x2 773 | -9/Materials | Identified Bomb Drone Bay 774 | -9/Materials | Identified exit to Materials 1100 | -9/Materials | Build established: Mutant 1136 | -9/Materials | Discovered exit to Materials (range 15) 1197 | -9/Materials | Discovered new exit (range 47) 1330 | -9/Materials | Entered Mines 1412 | -9/Mines | Deemed a non-threat by the Exiles lab entrance 1412 | -9/Mines | Discovered new exit (range 5) 1422 | -9/Mines | Entered Exiles 1481 | -9/Exiles | Met 8R-AWN 1509 | -9/Exiles | Met EX-HEX 1566 | -9/Exiles | Met EX-BIN 1589 | -9/Exiles | Aligned with FarCom system 1591 | -9/Exiles | Given EX-Vault access code 1634 | -9/Exiles | Opened EX-Vault 1654 | -9/Exiles | Found Flying Fortress v7 1740 | -9/Exiles | Warned to stay clear of 0b10 Research branches 1807 | -9/Exiles | Found Lightpack 2.0 1810 | -9/Exiles | Found AWS/Thermal 1864 | -9/Exiles | Met EX-DEC 1929 | -9/Exiles | Discovered new exit (range 10) 1940 | -9/Exiles | Stole three prototypes: Flying Fortress v7, Lightpack 2.0, AWS/Thermal 1940 | -9/Exiles | Entered Mines 2385 | -8/Mines | Discovered exit to Materials (range 3) 2409 | -8/Mines | Entered Materials 2409 | -8/Materials | Evolved 2 slots: Propulsion x2 2448 | -8/Materials | Identified exit to Storage 2714 | -8/Materials | Build established: Scout 2975 | -8/Materials | Discovered new exit (range 5) 2979 | -8/Materials | Entered Factory 2979 | -7/Factory | Evolved 2 slots: Propulsion x1, Utility x1 2981 | -7/Factory | FarCom data flow suspended 3044 | -7/Factory | Identified exit to DSF 3282 | -7/Factory | Build established: Mutant 3821 | -7/Factory | Discovered new exit (range 15) 3858 | -7/Factory | Entered another Factory area 3858 | -6/Factory | Evolved 2 slots: Utility x2 3924 | -6/Factory | Identified exit to DSF 3992 | -6/Factory | Crushed by falling debris 4166 | -6/Factory | Build established: Gladiator 4179 | -6/Factory | Discovered new exit (range 16) 4200 | -6/Factory | Entered another Factory area 4200 | -5/Factory | Evolved 2 slots: Power x1, Propulsion x1 4275 | -5/Factory | Identified exit to Factory 4487 | -5/Factory | Entered another Factory area 4487 | -4/Factory | Evolved 2 slots: Propulsion x1, Utility x1 4502 | -4/Factory | Spotted B-86 Titan 4567 | -4/Factory | Repaired Greatsword 4732 | -4/Factory | Spotted B-86 Titan 4743 | -4/Factory | Discovered new exit (range 15) 4749 | -4/Factory | Identified exit to Upper Caves 4785 | -4/Factory | Sucked down chute 4785 | -4/Factory | Entered Waste 4786 | -4/Waste | Met a frightened Derelict 4788 | -4/Waste | Build established: Sprinter 4793 | -4/Waste | Spotted C-40 Crusher 4806 | -4/Waste | Spotted C-40 Crusher 4808 | -4/Waste | Spotted C-40 Crusher 4839 | -4/Waste | Spotted C-40 Crusher 4840 | -4/Waste | Spotted C-40 Crusher 4840 | -4/Waste | Spotted C-40 Crusher 4905 | -4/Waste | Warlord forces began an assault 4928 | -4/Waste | Discovered new exit (range 11) 4935 | -4/Waste | Allies destroyed C-40 Crusher 4936 | -4/Waste | Allies destroyed C-40 Crusher 4948 | -4/Waste | Destroyed C-40 Crusher 4948 | -4/Waste | Destroyed C-40 Crusher 4961 | -4/Waste | Allies destroyed C-40 Crusher 4962 | -4/Waste | Allies destroyed C-40 Crusher 4979 | -4/Waste | Identified exit to Factory 5007 | -4/Waste | Entered Factory 5007 | -4/Factory | Accompanied by 9 allies 5028 | -4/Factory | Discovered new exit (range 13) 5031 | -4/Factory | Identified exit to Extension 5087 | -4/Factory | Entered Extension 5087 | -4/Extension | Accompanied by 9 allies 5109 | -4/Extension | Spotted B-86 Titan 5160 | -4/Extension | Destroyed B-86 Titan 5188 | -4/Extension | Spotted B-86 Titan 5200 | -4/Extension | Allies destroyed B-86 Titan 5238 | -4/Extension | Lost 7 parts (2p3n1u1w) 5409 | -4/Extension | Rescued a captive Derelict 5409 | -4/Extension | Rescued a captive Derelict 5430 | -4/Extension | Rescued a captive Derelict 5431 | -4/Extension | Rescued a captive Derelict 5466 | -4/Extension | Rescued a captive Derelict 5478 | -4/Extension | Rescued a captive Derelict 5560 | -4/Extension | Build established: Hauler-Gladiator 5713 | -4/Extension | Discovered new exit (range 10) 5715 | -4/Extension | Discovered new exit (range 6) 5730 | -4/Extension | Identified exit to Cetus 5733 | -4/Extension | Identified exit to Research 5822 | -4/Extension | Entered Cetus 5822 | -4/Cetus | Accompanied by 8 allies 5832 | -4/Cetus | Spotted Cetus Guard 5832 | -4/Cetus | Spotted Cetus Guard 5839 | -4/Cetus | Spotted Cetus Guard 5839 | -4/Cetus | Spotted Cetus Guard 5856 | -4/Cetus | Allies destroyed Cetus Guard 5860 | -4/Cetus | Allies destroyed Cetus Guard 5863 | -4/Cetus | Destroyed Cetus Guard 5865 | -4/Cetus | Allies destroyed Cetus Guard 6065 | -4/Cetus | Discovered exit to Research (range 20) 6135 | -4/Cetus | Build established: Hauler-Mutant 6144 | -4/Cetus | Cetus Manufacturing Module disabled 6166 | -4/Cetus | Discovered new exit (range 19) 6173 | -4/Cetus | Lost 3 parts (2p1w) 6183 | -4/Cetus | Identified exit to Archives 6183 | -4/Cetus | Entered Archives 6275 | -4/Archives | Discovered new exit (range 20) 6276 | -4/Archives | Unable to access archive contents 6276 | -4/Archives | Unable to access archive contents 6382 | -4/Archives | Lost 10 parts (2p2n2u4w) 6389 | -4/Archives | Unable to access archive contents 6391 | -4/Archives | Discovered exit to Research (range 17) 6395 | -4/Archives | Unable to access archive contents 6398 | -4/Archives | Discovered new exit (range 17) 6402 | -4/Archives | Unable to access archive contents 6452 | -4/Archives | Identified exit to Hub_04(d) 6536 | -4/Archives | Entered Hub_04(d) 6591 | -4/Hub_04(d) | Discovered exit to Research (range 15) 6787 | -4/Hub_04(d) | Garrison activated, responded to threat 6866 | -4/Hub_04(d) | Entered Research 6866 | -3/Research | Evolved 2 slots: Utility x2 6887 | -3/Research | Lost 18 parts (3p10n2u3w) 6915 | -3/Research | Found Imp. Powered Armor 6925 | -3/Research | Found Imp. Powered Armor 6932 | -3/Research | Found Imp. Powered Armor 6934 | -3/Research | Found Imp. Powered Armor 7029 | -3/Research | Lost 4 parts (2p1n1w) 7140 | -3/Research | Found Prototype Processor 7140 | -3/Research | Identified Exp. Target Analyzer 7143 | -3/Research | Identified exit to Armory 7143 | -3/Research | Identified exit to Quarantine 7157 | -3/Research | Entered Quarantine 7263 | -3/Quarantine | Found Alien Slashing Weapon 7263 | -3/Quarantine | Identified Sigix Broadsword 7334 | -3/Quarantine | Lost 4 parts (1p1n2u) 7334 | -3/Quarantine | Found Alien Artifact 7334 | -3/Quarantine | Identified Phase Armor 7379 | -3/Quarantine | Found Alien Artifact 7379 | -3/Quarantine | Identified Transdimensional Reconstructor 7379 | -3/Quarantine | Warped through subspace 7406 | -3/Quarantine | Found Alien Artifact 7406 | -3/Quarantine | Identified Hpw. Transdimensional Reconstructor 7406 | -3/Quarantine | Warped through subspace 7445 | -3/Quarantine | Found Transdimensional Reconstructor 7446 | -3/Quarantine | Found Hpw. Transdimensional Reconstructor 7450 | -3/Quarantine | Found Alien Artifact 7451 | -3/Quarantine | Found Alien Artifact 7453 | -3/Quarantine | Search patrols dispatched 7453 | -3/Quarantine | Found Alien Artifact 7470 | -3/Quarantine | Discovered new exit (range 11) 7475 | -3/Quarantine | Identified exit to Research 7479 | -3/Quarantine | Entered Research 7479 | -2/Research | Evolved 2 slots: Power x1, Propulsion x1 7519 | -2/Research | Discovered new exit (range 49) 7524 | -2/Research | Discovered new exit (range 37) 7624 | -2/Research | Found Gamma Bomb Array 7635 | -2/Research | Identified exit to Access 7668 | -2/Research | Identified Dimensional Node Initializer 7668 | -2/Research | Initialized slip node 7669 | -2/Research | Core integrity fell below 50% 7685 | -2/Research | Core integrity fell below 20% 7688 | -2/Research | Entered Access 7688 | -1/Access | Evolved 2 slots: Propulsion x2 7897 | -1/Access | Spotted B-99 Colossus 7979 | -1/Access | Spotted B-99 Colossus 7980 | -1/Access | Spotted B-99 Colossus 8055 | -1/Access | Core integrity fell below 50% 8086 | -1/Access | Core integrity fell below 20% 8125 | -1/Access | Lost 29 parts (3p11n11u4w) 8161 | -1/Access | Destroyed by H-88 Terminator with Heavy Machine Gun Last Messages --------------- 08099_ Hdn. Centrium Leg severed. 08105_ Adv. Surge Thruster severed. 08105_ Acquired Adv. Surge Thruster. 08114_ C-57 Dissector destroyed. 08122_ Acquired Imp. Core Shielding. 08151_ Triggered Alarm Trap. 08151_ An alarm sounds. 08151_ ALERT: Alarm triggered, dispatching investigation squad. 08152_ Slug penetrates Wall. 08157_ Slug penetrates Wave Collapse Detector. 08157_ Wave Collapse Detector explodes. 08157_ H-88 Terminator destroyed. 08157_ Adv. Surge Thruster destroyed. 08157_ Penetrated by Slug. 08157_ Adv. Surge Thruster destroyed. 08158_ Penetrated by Slug. 08158_ Slug penetrates Wall. 08160_ Penetrated by Slug. 08160_ Slug penetrates Wave Collapse Detector. 08161_ Penetrated by Slug. Map ----- +----------------------------------------------------+ | ?# #???????????# #???? | | ?# #???????????# #???? | | ?#! #???????????# #???? | | ?? #???????????# #???? | | ?? #???????????# #???? | | ??? ????????????# #???? | | ??? ????????????# #???? | | ?###+############## #???? | | ?# #???? | | ?# #???? | | ?# #???? | | ?# ? | | ?# ##? | | ?# #?? | | ?# " #?? | | ?# h "" ?? | | ?# " G ?? | | ?# """ "" #?? | | ?# """ " #?? | | ?# "h #?? | | ?# #?? | | ?# #?? | | ?# ### | | ?# h%= " | | ?# """ | | ?#@ """ | | ?# [= " | | ?# h% | | ?# =! | | ?# #?? | | ?# ##?? | | ?######### ### #?## | | ??????????#### # | | ?????????????# # ! | | ?????????????# + | | ?????????????# # | | ??????????#### # | | ??????????# #### | | ??????????# | | ???????#### | | ???????# | | ???????# #### * | | ????#### #??# * | | ????# #+##+#### ! | | ????# # + | | ????# #= ###### | | ????# # #????? / | | ????# + ! !#????? | | ????# # ! !#?????#### | | ????# # !!!#????????? | +----------------------------------------------------+ Best States ------------- Heat Dissipation 93 Energy Generation 42 Energy Capacity 530 Matter Stores 300 Matter Capacity 300 Sight Range 20 Robot Scan Range 15 Terrain Scan Range 16 Terrain Scan Density 10 ECM Strength 1 Additional Mass Support 9 Core Shielding 30 Propulsion Shielding 66 Evasion (%) 76 Melee Accuracy 24 Recoil Reduction 3 Energy Filtering 50 Particle Charging 15 Item Schematics ----------------- Tractor Beam | -9/Materials | Extracted Seismic Detector | -9/Materials | Extracted Hcp. Battery | -9/Materials | Extracted Imp. Hover Unit | -9/Materials | Extracted Cargo Storage Unit | -9/Materials | Extracted Maul | -9/Materials | Extracted Adv. Weight Redist. System | -8/Materials | Scanalyzed Robot Schematics ------------------ None Fabricated ------------ Nothing Alien Tech Used ----------------- Sigix Broadsword Phase Armor Transdimensional Reconstructor High-powered Transdimensional Reconstructor Dimensional Node Initializer Achievements -------------- Packrat Challenges ------------ None Game ------ Seed BackupHugeStick Manual? 0 Play Time 02:28:38 Cumulative 96.4 hours Start 2022.06.04 @ 15:11:18 End 2022.06.05 @ 14:23:20 Sessions 9 Manual Loads 0 Difficulty Rogue Special Mode None Game No. 102 Rogue 102 Adventurer 0 Explorer 0 Win Type - Total 0 Types 0/0/0/0/0/0/0/0/0 Lore% 47 Gallery% 60 Achievement% 45 Wizard Run 0 Options --------- ASCII 0 Keyboard 0 Movement Mouse Keybinds 0 Fullscreen 1 Font 18/SmallcapsGlow Map View 76x50 Tactical HUD 1 Map Filters NONE Filters NONE Steam 1 RUN: 0def0295-d51c-4ec0-b557-a8e99e67a6e6